[Event "*** Titled Tuesday Blitz"]
[Site "Chess.com"]
[Date "2020.05.19"]
[Round "10"]
[White "vpantev"]
[Black "Grandmaster2B"]
[Result "1/2-1/2"]
[WhiteElo "2543"]
[BlackElo "2415"]
[TimeControl "180+1"]
[EndTime "13:58:07 PDT"]
[Termination "Game drawn by repetition"]

1. d4 {[%clk 0:02:55.6]} 1... Nf6 {[%clk 0:02:59.8]} 2. Nf3 {[%clk 0:02:53.8]}
2... e6 {[%clk 0:02:58.4]} 3. Bf4 {[%clk 0:02:53]} 3... c5 {[%clk 0:02:57.7]} 4.
e3 {[%clk 0:02:53.2]} 4... d5 {[%clk 0:02:57.8]} 5. c4 {[%clk 0:02:52.2]} 5...
Nc6 {[%clk 0:02:56.5]} 6. Nc3 {[%clk 0:02:52]} 6... cxd4 {[%clk 0:02:55.8]} 7.
exd4 {[%clk 0:02:51.8]} 7... Be7 {[%clk 0:02:54.6]} 8. c5 {[%clk 0:02:50.8]}
8... O-O {[%clk 0:02:53.1]} 9. a3 {[%clk 0:02:49.8]} 9... a5 {[%clk 0:02:48]}
10. Rb1 {[%clk 0:02:48.6]} 10... Ne4 {[%clk 0:02:38.4]} 11. Qc2 {[%clk
0:02:47.9]} 11... Nxc3 {[%clk 0:02:26.3]} 12. bxc3 {[%clk 0:02:47.1]} 12... a4
{[%clk 0:02:24]} 13. Bb5 {[%clk 0:02:44.6]} 13... Na5 {[%clk 0:02:21.2]} 14. O-O
{[%clk 0:02:41.4]} 14... Bd7 {[%clk 0:02:16.2]} 15. Bd3 {[%clk 0:02:34.8]} 15...
g6 {[%clk 0:02:11]} 16. Rfe1 {[%clk 0:02:30.5]} 16... Nb3 {[%clk 0:01:59.2]} 17.
Nd2 {[%clk 0:02:28.4]} 17... Na5 {[%clk 0:01:48.2]} 18. Rb4 {[%clk 0:02:23]}
18... b5 {[%clk 0:01:41.4]} 19. Bxb5 {[%clk 0:02:17.9]} 19... Bxb5 {[%clk
0:01:27.1]} 20. Rxb5 {[%clk 0:02:17.6]} 20... Nc6 {[%clk 0:01:28]} 21. Reb1
{[%clk 0:02:15.4]} 21... Bg5 {[%clk 0:01:18.5]} 22. Bxg5 {[%clk 0:02:13.8]}
22... Qxg5 {[%clk 0:01:19.4]} 23. Nf3 {[%clk 0:02:13.5]} 23... Qf4 {[%clk
0:01:17.9]} 24. Qe2 {[%clk 0:02:05.3]} 24... Rfe8 {[%clk 0:01:07.4]} 25. g3
{[%clk 0:02:03.2]} 25... Qf5 {[%clk 0:01:03.4]} 26. Rb6 {[%clk 0:02:01.1]} 26...
e5 {[%clk 0:00:54.1]} 27. Rxc6 {[%clk 0:01:57.2]} 27... Qxb1+ {[%clk 0:00:52.8]}
28. Kg2 {[%clk 0:01:56.9]} 28... exd4 {[%clk 0:00:47.7]} 29. Qd2 {[%clk
0:01:57]} 29... dxc3 {[%clk 0:00:40.4]} 30. Qxc3 {[%clk 0:01:55.4]} 30... Qe4
{[%clk 0:00:35.6]} 31. Rc7 {[%clk 0:01:47.1]} 31... Rad8 {[%clk 0:00:24.2]} 32.
Qf6 {[%clk 0:01:46.3]} 32... Qe6 {[%clk 0:00:23]} 33. Qf4 {[%clk 0:01:45.4]}
33... Rc8 {[%clk 0:00:16.8]} 34. Ng5 {[%clk 0:01:41.7]} 34... Qf5 {[%clk
0:00:07.9]} 35. Qxf5 {[%clk 0:01:31.6]} 35... gxf5 {[%clk 0:00:08.8]} 36. Rd7
{[%clk 0:01:31.7]} 36... Red8 {[%clk 0:00:04.9]} 37. Ra7 {[%clk 0:01:21]} 37...
d4 {[%clk 0:00:03]} 38. Nxf7 {[%clk 0:01:17.6]} 38... d3 {[%clk 0:00:03.1]} 39.
Nxd8 {[%clk 0:01:17.5]} 39... Rxd8 {[%clk 0:00:04]} 40. c6 {[%clk 0:01:17.7]}
40... d2 {[%clk 0:00:04.4]} 41. c7 {[%clk 0:01:17.7]} 41... d1=Q {[%clk
0:00:04.1]} 42. cxd8=Q+ {[%clk 0:01:17.2]} 42... Qxd8 {[%clk 0:00:05]} 43. Rxa4
{[%clk 0:01:16.1]} 43... Qd5+ {[%clk 0:00:05.1]} 44. Kh3 {[%clk 0:01:14.2]}
44... Qc5 {[%clk 0:00:01.9]} 45. Rf4 {[%clk 0:01:13.4]} 45... Qd5 {[%clk
0:00:01.7]} 46. a4 {[%clk 0:01:12.7]} 46... Kf7 {[%clk 0:00:01.8]} 47. a5 {[%clk
0:01:07.2]} 47... Kg6 {[%clk 0:00:01.8]} 48. a6 {[%clk 0:01:05.5]} 48... Qd6
{[%clk 0:00:01.9]} 49. Kg2 {[%clk 0:01:04.8]} 49... Qxa6 {[%clk 0:00:01.8]} 50.
Kg1 {[%clk 0:01:02.5]} 50... Qc6 {[%clk 0:00:02.5]} 51. Rh4 {[%clk 0:01:01.7]}
51... Qc1+ {[%clk 0:00:02.9]} 52. Kg2 {[%clk 0:01:01.6]} 52... Qd1 {[%clk
0:00:03.2]} 53. Rf4 {[%clk 0:01:01]} 53... Kg5 {[%clk 0:00:03]} 54. Rh4 {[%clk
0:01:00.4]} 54... Qd5+ {[%clk 0:00:02.9]} 55. Kg1 {[%clk 0:00:59.8]} 55... h5
{[%clk 0:00:02.9]} 56. Rf4 {[%clk 0:00:59.2]} 56... Qe5 {[%clk 0:00:03.4]} 57.
Rh4 {[%clk 0:00:57]} 57... Qe1+ {[%clk 0:00:03.7]} 58. Kg2 {[%clk 0:00:56.9]}
58... Qe2 {[%clk 0:00:04.6]} 59. Kg1 {[%clk 0:00:56.6]} 59... Qf3 {[%clk
0:00:04]} 60. Rd4 {[%clk 0:00:53.9]} 60... Kf6 {[%clk 0:00:02.7]} 61. Rh4 {[%clk
0:00:53.5]} 61... Ke5 {[%clk 0:00:02.1]} 62. Kf1 {[%clk 0:00:45.6]} 62... Qh1+
{[%clk 0:00:01.8]} 63. Ke2 {[%clk 0:00:45.5]} 63... Qc1 {[%clk 0:00:01.8]} 64.
Kf3 {[%clk 0:00:41.3]} 64... Qc2 {[%clk 0:00:02.7]} 65. Kg2 {[%clk 0:00:41.2]}
65... Qc6+ {[%clk 0:00:03.1]} 66. Kg1 {[%clk 0:00:41]} 66... Qc1+ {[%clk
0:00:03.2]} 67. Kg2 {[%clk 0:00:41.1]} 67... Qc6+ {[%clk 0:00:04.1]} 68. Kg1
{[%clk 0:00:40.5]} 68... Qf3 {[%clk 0:00:04.7]} 69. Kf1 {[%clk 0:00:38.5]} 69...
Qh1+ {[%clk 0:00:02.7]} 70. Ke2 {[%clk 0:00:38.5]} 70... Qb1 {[%clk 0:00:02.5]}
71. Kf3 {[%clk 0:00:37]} 71... Qb7+ {[%clk 0:00:02.2]} 72. Ke2 {[%clk
0:00:36.8]} 72... Kd5 {[%clk 0:00:01.4]} 73. Kf3 {[%clk 0:00:36.2]} 73... Ke5+
{[%clk 0:00:01.7]} 74. Ke2 {[%clk 0:00:36.1]} 74... Qf7 {[%clk 0:00:01.9]} 75.
Kf3 {[%clk 0:00:35.7]} 75... Qa2 {[%clk 0:00:02.8]} 76. Kg2 {[%clk 0:00:35.3]}
76... Qd5+ {[%clk 0:00:03]} 77. Kf1 {[%clk 0:00:35]} 77... Qd1+ {[%clk
0:00:03.5]} 78. Kg2 {[%clk 0:00:34.9]} 78... Qd5+ {[%clk 0:00:04.4]} 79. Kg1
{[%clk 0:00:34.3]} 79... Qd1+ {[%clk 0:00:05.3]} 80. Kg2 {[%clk 0:00:34.2]}
80... Qd5+ {[%clk 0:00:05.6]} 1/2-1/2

[Event "*** Titled Tuesday Blitz"]
[Site "Chess.com"]
[Date "2020.05.19"]
[Round "10"]
[White "EmeseBalogh"]
[Black "Efremov_Vlad"]
[Result "0-1"]
[WhiteElo "1949"]
[BlackElo "2138"]
[TimeControl "180+1"]
[EndTime "13:58:10 PDT"]
[Termination "Efremov_Vlad won by resignation"]

1. e4 {[%clk 0:03:00.9]} 1... c5 {[%clk 0:02:59.7]} 2. Nc3 {[%clk 0:02:57.6]}
2... e6 {[%clk 0:02:56.8]} 3. g3 {[%clk 0:02:57]} 3... Nc6 {[%clk 0:02:54.9]} 4.
Bg2 {[%clk 0:02:57.1]} 4... g6 {[%clk 0:02:54.3]} 5. d3 {[%clk 0:02:56.9]} 5...
Bg7 {[%clk 0:02:53.6]} 6. Be3 {[%clk 0:02:56.9]} 6... d6 {[%clk 0:02:53.4]} 7.
Nge2 {[%clk 0:02:57]} 7... Nge7 {[%clk 0:02:51.7]} 8. O-O {[%clk 0:02:56.7]}
8... Nd4 {[%clk 0:02:50.3]} 9. Qd2 {[%clk 0:02:55.5]} 9... O-O {[%clk
0:02:49.6]} 10. f4 {[%clk 0:02:55.5]} 10... Rb8 {[%clk 0:02:46.5]} 11. Rae1
{[%clk 0:02:55.1]} 11... b5 {[%clk 0:02:44]} 12. Nd1 {[%clk 0:02:54.8]} 12...
Bb7 {[%clk 0:02:39.3]} 13. c3 {[%clk 0:02:52.2]} 13... Nxe2+ {[%clk 0:02:35.4]}
14. Qxe2 {[%clk 0:02:53.1]} 14... a5 {[%clk 0:02:16.1]} 15. Nf2 {[%clk
0:02:51.2]} 15... Qc7 {[%clk 0:02:08.7]} 16. h3 {[%clk 0:02:49]} 16... d5 {[%clk
0:02:07.8]} 17. g4 {[%clk 0:02:43.2]} 17... dxe4 {[%clk 0:01:43]} 18. dxe4
{[%clk 0:02:44.1]} 18... f5 {[%clk 0:01:28.6]} 19. gxf5 {[%clk 0:02:42.9]} 19...
gxf5 {[%clk 0:01:11.5]} 20. e5 {[%clk 0:02:42.7]} 20... Nd5 {[%clk 0:01:00.2]}
21. Bc1 {[%clk 0:02:40.8]} 21... c4 {[%clk 0:00:56.3]} 22. Kh2 {[%clk
0:02:32.3]} 22... b4 {[%clk 0:00:55.9]} 23. Rg1 {[%clk 0:02:28.3]} 23... bxc3
{[%clk 0:00:50.2]} 24. Bxd5 {[%clk 0:02:26.5]} 24... Bxd5 {[%clk 0:00:51.1]} 25.
bxc3 {[%clk 0:02:25.7]} 25... Kh8 {[%clk 0:00:44.6]} 26. Be3 {[%clk 0:02:24.5]}
26... Rg8 {[%clk 0:00:32.1]} 27. Qh5 {[%clk 0:02:17.4]} 27... Bxe5 {[%clk
0:00:20]} 28. Qh6 {[%clk 0:01:53.3]} 28... Bxc3 {[%clk 0:00:18.6]} 29. Rc1
{[%clk 0:01:30.3]} 29... Bg7 {[%clk 0:00:18.3]} 30. Qh4 {[%clk 0:01:12.2]} 30...
Rb2 {[%clk 0:00:18]} 31. Rg5 {[%clk 0:00:59.7]} 31... Re2 {[%clk 0:00:09.1]} 32.
Rh5 {[%clk 0:00:47.7]} 32... Bb2 {[%clk 0:00:05.8]} 33. Rd1 {[%clk 0:00:19.2]}
33... Rxe3 {[%clk 0:00:04.3]} 34. Rxd5 {[%clk 0:00:12.2]} 34... exd5 {[%clk
0:00:04]} 35. Rxf5 {[%clk 0:00:11.3]} 35... Re2 {[%clk 0:00:04]} 36. Re5 {[%clk
0:00:08.8]} 36... Qg7 {[%clk 0:00:03.9]} 37. Rg5 {[%clk 0:00:05.5]} 37... Rxf2+
{[%clk 0:00:02.8]} 38. Qxf2 {[%clk 0:00:05.5]} 38... Qf6 {[%clk 0:00:03]} 39.
Rxg8+ {[%clk 0:00:04]} 39... Kxg8 {[%clk 0:00:02.7]} 40. Qg3+ {[%clk 0:00:03.9]}
40... Kh8 {[%clk 0:00:02.8]} 41. Qf3 {[%clk 0:00:03.8]} 41... d4 {[%clk
0:00:03]} 42. Qd5 {[%clk 0:00:03.5]} 42... Kg7 {[%clk 0:00:02.7]} 43. Qxc4
{[%clk 0:00:02.9]} 43... d3 {[%clk 0:00:02]} 44. Qxd3 {[%clk 0:00:02.6]} 44...
Qxf4+ {[%clk 0:00:02.5]} 45. Qg3+ {[%clk 0:00:02]} 45... Qxg3+ {[%clk
0:00:01.1]} 46. Kxg3 {[%clk 0:00:02.9]} 46... Be5+ {[%clk 0:00:01.1]} 47. Kg4
{[%clk 0:00:03]} 47... Kf6 {[%clk 0:00:02]} 48. h4 {[%clk 0:00:03.9]} 48... Ke6
{[%clk 0:00:02.4]} 49. h5 {[%clk 0:00:04.8]} 49... Kd5 {[%clk 0:00:02.8]} 50.
Kg5 {[%clk 0:00:05.7]} 50... Kc4 {[%clk 0:00:02.8]} 51. Kh6 {[%clk 0:00:06.6]}
51... Kc3 {[%clk 0:00:03.2]} 52. Kxh7 {[%clk 0:00:07.3]} 52... Kb2 {[%clk
0:00:03.5]} 53. Kg6 {[%clk 0:00:08.2]} 53... Kxa2 {[%clk 0:00:03.5]} 54. h6
{[%clk 0:00:09.1]} 54... Bd4 {[%clk 0:00:03.4]} 55. h7 {[%clk 0:00:10]} 55...
Bh8 {[%clk 0:00:02.7]} 56. Kf7 {[%clk 0:00:10.4]} 56... Ba1 {[%clk 0:00:03.2]}
57. Kg8 {[%clk 0:00:11]} 57... a4 {[%clk 0:00:02.9]} 58. h8=Q {[%clk 0:00:11.9]}
58... Bxh8 {[%clk 0:00:02.3]} 59. Kxh8 {[%clk 0:00:12.8]} 59... a3 {[%clk
0:00:02.4]} 60. Kg7 {[%clk 0:00:13.7]} 60... Kb2 {[%clk 0:00:03.2]} 61. Kf6
{[%clk 0:00:14.6]} 61... a2 {[%clk 0:00:03.6]} 62. Ke5 {[%clk 0:00:15.5]} 62...
a1=Q {[%clk 0:00:04.1]} 63. Kd4 {[%clk 0:00:16.4]} 63... Qc1 {[%clk 0:00:04.2]}
64. Kd3 {[%clk 0:00:16.4]} 64... Kb3 {[%clk 0:00:04.4]} 65. Kd4 {[%clk
0:00:16.3]} 65... Qd1+ {[%clk 0:00:04.5]} 66. Ke3 {[%clk 0:00:16.2]} 66... Qg4
{[%clk 0:00:05.1]} 0-1

[Event "*** Titled Tuesday Blitz"]
[Site "Chess.com"]
[Date "2020.05.19"]
[Round "10"]
[White "Konovalova_Vera"]
[Black "Chuchofrio1"]
[Result "0-1"]
[WhiteElo "2147"]
[BlackElo "2237"]
[TimeControl "180+1"]
[EndTime "13:58:11 PDT"]
[Termination "Chuchofrio1 won by checkmate"]

1. d4 {[%clk 0:03:00.9]} 1... d5 {[%clk 0:02:59.4]} 2. Bg5 {[%clk 0:03:00.5]}
2... c6 {[%clk 0:02:53.4]} 3. Nf3 {[%clk 0:02:59.6]} 3... Qb6 {[%clk 0:02:51.4]}
4. b3 {[%clk 0:02:58.1]} 4... e6 {[%clk 0:02:51]} 5. e3 {[%clk 0:02:56.6]} 5...
Bb4+ {[%clk 0:02:49.9]} 6. c3 {[%clk 0:02:55.9]} 6... Be7 {[%clk 0:02:46]} 7.
Nbd2 {[%clk 0:02:55.2]} 7... Nf6 {[%clk 0:02:44.6]} 8. Bd3 {[%clk 0:02:54]} 8...
Nbd7 {[%clk 0:02:43.3]} 9. O-O {[%clk 0:02:53]} 9... O-O {[%clk 0:02:42.5]} 10.
Rc1 {[%clk 0:02:49.9]} 10... c5 {[%clk 0:02:42.3]} 11. Bb1 {[%clk 0:02:47.5]}
11... Rd8 {[%clk 0:02:38.7]} 12. Qc2 {[%clk 0:02:46]} 12... Nf8 {[%clk 0:02:38]}
13. Ne5 {[%clk 0:02:40.2]} 13... h6 {[%clk 0:02:35.3]} 14. Bh4 {[%clk
0:02:37.2]} 14... Bd7 {[%clk 0:02:25.2]} 15. Ndf3 {[%clk 0:02:23.1]} 15... Rac8
{[%clk 0:02:21.6]} 16. Nxd7 {[%clk 0:02:21.3]} 16... Rxd7 {[%clk 0:02:16.7]} 17.
Ne5 {[%clk 0:02:20.9]} 17... Rdd8 {[%clk 0:02:16.5]} 18. Qd3 {[%clk 0:02:16.2]}
18... cxd4 {[%clk 0:02:10.1]} 19. exd4 {[%clk 0:02:13]} 19... Qd6 {[%clk
0:02:06.6]} 20. Qf3 {[%clk 0:02:01.8]} 20... N8d7 {[%clk 0:01:55.6]} 21. Nxd7
{[%clk 0:01:55.8]} 21... Qxd7 {[%clk 0:01:47.1]} 22. Rfe1 {[%clk 0:01:47.7]}
22... Ne8 {[%clk 0:01:39.4]} 23. Bg3 {[%clk 0:01:44]} 23... Bg5 {[%clk
0:01:35.4]} 24. Rcd1 {[%clk 0:01:41.8]} 24... Qc6 {[%clk 0:01:33.4]} 25. Qd3
{[%clk 0:01:31.8]} 25... g6 {[%clk 0:01:22.8]} 26. h4 {[%clk 0:01:27.5]} 26...
Bf6 {[%clk 0:01:22.1]} 27. Rc1 {[%clk 0:01:22.6]} 27... h5 {[%clk 0:01:18.8]}
28. Qe3 {[%clk 0:01:17.4]} 28... Ng7 {[%clk 0:01:17.1]} 29. Qf3 {[%clk
0:01:08.8]} 29... Be7 {[%clk 0:01:10.7]} 30. Red1 {[%clk 0:00:58.2]} 30... Bd6
{[%clk 0:01:10.4]} 31. Bxd6 {[%clk 0:00:56.1]} 31... Qxd6 {[%clk 0:01:11.3]} 32.
Qe3 {[%clk 0:00:54.8]} 32... Nf5 {[%clk 0:01:07.1]} 33. Bxf5 {[%clk 0:00:54.5]}
33... exf5 {[%clk 0:01:08]} 34. Qd3 {[%clk 0:00:52.8]} 34... Re8 {[%clk
0:01:06.7]} 35. Re1 {[%clk 0:00:52.8]} 35... Re4 {[%clk 0:01:06.3]} 36. g3
{[%clk 0:00:49.4]} 36... Rce8 {[%clk 0:01:05.4]} 37. Kf1 {[%clk 0:00:45.1]}
37... f4 {[%clk 0:00:59.6]} 38. Rxe4 {[%clk 0:00:34.9]} 38... dxe4 {[%clk
0:00:58.3]} 39. Qb5 {[%clk 0:00:32.5]} 39... Qe6 {[%clk 0:00:52.7]} 40. Kg2
{[%clk 0:00:30.1]} 40... f3+ {[%clk 0:00:48.6]} 41. Kh2 {[%clk 0:00:29.5]} 41...
e3 {[%clk 0:00:48.9]} 42. Re1 {[%clk 0:00:26]} 42... exf2 {[%clk 0:00:36.5]} 43.
Rxe6 {[%clk 0:00:25.7]} 43... Rxe6 {[%clk 0:00:36.5]} 44. Qf1 {[%clk 0:00:24.3]}
44... Re2 {[%clk 0:00:35.7]} 45. g4 {[%clk 0:00:23.4]} 45... hxg4 {[%clk
0:00:35]} 46. Kg3 {[%clk 0:00:23.7]} 46... f5 {[%clk 0:00:34.3]} 47. Kf4 {[%clk
0:00:22.2]} 47... Kf7 {[%clk 0:00:31.9]} 48. Kg3 {[%clk 0:00:21.7]} 48... Kf6
{[%clk 0:00:31.9]} 49. Qc1 {[%clk 0:00:19.2]} 49... Kg7 {[%clk 0:00:18.5]} 50.
Qf1 {[%clk 0:00:17.2]} 50... Rxa2 {[%clk 0:00:17.6]} 51. c4 {[%clk 0:00:17]}
51... Re2 {[%clk 0:00:17.1]} 52. d5 {[%clk 0:00:17]} 52... g5 {[%clk 0:00:17]}
53. Qa1+ {[%clk 0:00:16.7]} 53... Kg6 {[%clk 0:00:17.1]} 54. hxg5 {[%clk
0:00:16.8]} 54... Kxg5 {[%clk 0:00:17.6]} 55. Qg7+ {[%clk 0:00:15.8]} 55... Kh5
{[%clk 0:00:17.4]} 56. Kf4 {[%clk 0:00:15.5]} 56... Re4+ {[%clk 0:00:16.7]} 57.
Kxf5 {[%clk 0:00:15.2]} 57... Kh4 {[%clk 0:00:14.4]} 58. Qh6+ {[%clk 0:00:14.9]}
58... Kg3 {[%clk 0:00:14.8]} 59. Qd6+ {[%clk 0:00:13.6]} 59... Kg2 {[%clk
0:00:14.7]} 60. Qc5 {[%clk 0:00:12]} 60... f1=Q {[%clk 0:00:14.3]} 61. Kxe4
{[%clk 0:00:11.3]} 61... Qe2+ {[%clk 0:00:14.8]} 62. Kf5 {[%clk 0:00:10.9]}
62... Qd3+ {[%clk 0:00:14.6]} 63. Kf4 {[%clk 0:00:08.2]} 63... f2 {[%clk
0:00:14.4]} 64. d6 {[%clk 0:00:06.8]} 64... f1=Q+ {[%clk 0:00:14]} 65. Kxg4
{[%clk 0:00:07.2]} 65... Qdf3+ {[%clk 0:00:13.7]} 66. Kg5 {[%clk 0:00:06.4]}
66... Qg3+ {[%clk 0:00:13.9]} 67. Kh5 {[%clk 0:00:05.7]} 67... Qh1# {[%clk
0:00:14.1]} 0-1

[Event "*** Titled Tuesday Blitz"]
[Site "Chess.com"]
[Date "2020.05.19"]
[Round "10"]
[White "DaggiGretarsson"]
[Black "Anna_ChessMate"]
[Result "1-0"]
[WhiteElo "2625"]
[BlackElo "2530"]
[TimeControl "180+1"]
[EndTime "13:58:12 PDT"]
[Termination "DaggiGretarsson won by resignation"]

1. d4 {[%clk 0:03:00.2]} 1... d5 {[%clk 0:02:58.5]} 2. Nf3 {[%clk 0:02:59.6]}
2... Nf6 {[%clk 0:02:58.2]} 3. g3 {[%clk 0:02:59.7]} 3... Bf5 {[%clk 0:02:57.3]}
4. Bg2 {[%clk 0:03:00]} 4... e6 {[%clk 0:02:57.9]} 5. O-O {[%clk 0:03:00.1]}
5... Be7 {[%clk 0:02:58.5]} 6. c4 {[%clk 0:02:59.7]} 6... c6 {[%clk 0:02:58.4]}
7. Nc3 {[%clk 0:02:58.9]} 7... O-O {[%clk 0:02:58.8]} 8. Qb3 {[%clk 0:02:57.6]}
8... Qc8 {[%clk 0:02:58.2]} 9. Nh4 {[%clk 0:02:55.5]} 9... Bg4 {[%clk
0:02:56.6]} 10. h3 {[%clk 0:02:55.1]} 10... Bh5 {[%clk 0:02:56.1]} 11. g4 {[%clk
0:02:52.6]} 11... Bg6 {[%clk 0:02:54.1]} 12. Nxg6 {[%clk 0:02:47.4]} 12... hxg6
{[%clk 0:02:55]} 13. Bf4 {[%clk 0:02:45.3]} 13... Nbd7 {[%clk 0:02:53.8]} 14. e3
{[%clk 0:02:44]} 14... Re8 {[%clk 0:02:48.9]} 15. Bg3 {[%clk 0:02:39.8]} 15...
Nb6 {[%clk 0:02:39.7]} 16. c5 {[%clk 0:02:39.3]} 16... Nbd7 {[%clk 0:02:38.6]}
17. Qc2 {[%clk 0:02:39]} 17... Nh7 {[%clk 0:02:28.1]} 18. h4 {[%clk 0:02:33.2]}
18... e5 {[%clk 0:02:27.3]} 19. g5 {[%clk 0:02:23.1]} 19... Nhf8 {[%clk
0:02:24.7]} 20. b4 {[%clk 0:02:17.6]} 20... exd4 {[%clk 0:02:21.8]} 21. exd4
{[%clk 0:02:17.2]} 21... Ne6 {[%clk 0:02:22.7]} 22. Rad1 {[%clk 0:02:15.6]}
22... Bd8 {[%clk 0:02:16.9]} 23. Bh3 {[%clk 0:02:13.7]} 23... Bc7 {[%clk
0:02:16.9]} 24. f4 {[%clk 0:02:12.1]} 24... a5 {[%clk 0:02:13.3]} 25. b5 {[%clk
0:02:11.5]} 25... Ndf8 {[%clk 0:01:22.1]} 26. b6 {[%clk 0:02:05.9]} 26... Bb8
{[%clk 0:01:06.8]} 27. a4 {[%clk 0:01:57.4]} 27... Re7 {[%clk 0:00:54.3]} 28.
Qg2 {[%clk 0:01:49.1]} 28... Qe8 {[%clk 0:00:45.6]} 29. Qf3 {[%clk 0:01:44.3]}
29... Qd7 {[%clk 0:00:41.7]} 30. Kh2 {[%clk 0:01:38.6]} 30... Qe8 {[%clk
0:00:38.7]} 31. Qf2 {[%clk 0:01:23.2]} 31... Nd7 {[%clk 0:00:35.7]} 32. Rfe1
{[%clk 0:01:21]} 32... Ra6 {[%clk 0:00:31.7]} 33. Bg4 {[%clk 0:01:05.5]} 33...
Nxb6 {[%clk 0:00:30.4]} 34. cxb6 {[%clk 0:01:04.6]} 34... Rxb6 {[%clk
0:00:31.3]} 35. Bxe6 {[%clk 0:00:57]} 35... fxe6 {[%clk 0:00:30.4]} 36. Rb1
{[%clk 0:00:46.4]} 36... Ba7 {[%clk 0:00:29.9]} 37. Rxb6 {[%clk 0:00:44.6]}
37... Bxb6 {[%clk 0:00:30.8]} 38. Rb1 {[%clk 0:00:44.4]} 38... Ba7 {[%clk
0:00:28.6]} 39. Qd2 {[%clk 0:00:36.5]} 39... Qf7 {[%clk 0:00:21]} 40. Qd3 {[%clk
0:00:31.1]} 40... Bb8 {[%clk 0:00:14.3]} 41. Ne2 {[%clk 0:00:30.3]} 41... Bd6
{[%clk 0:00:13.2]} 42. Rf1 {[%clk 0:00:21.3]} 42... Re8 {[%clk 0:00:10.2]} 43.
Ng1 {[%clk 0:00:20.4]} 43... Qd7 {[%clk 0:00:06.7]} 44. Nf3 {[%clk 0:00:19.7]}
44... b5 {[%clk 0:00:07.6]} 45. Qxg6 {[%clk 0:00:18.5]} 45... b4 {[%clk
0:00:05.6]} 46. h5 {[%clk 0:00:17.3]} 46... Qf7 {[%clk 0:00:05.1]} 47. Qxf7+
{[%clk 0:00:17]} 47... Kxf7 {[%clk 0:00:06]} 48. g6+ {[%clk 0:00:17.3]} 48...
Ke7 {[%clk 0:00:05.7]} 49. Bh4+ {[%clk 0:00:16.4]} 49... Kd7 {[%clk 0:00:05.7]}
50. Ne5+ {[%clk 0:00:16.5]} 50... Kc7 {[%clk 0:00:05.9]} 51. Rc1 {[%clk
0:00:16.3]} 51... c5 {[%clk 0:00:06.2]} 52. dxc5 {[%clk 0:00:15.5]} 52... Bxe5
{[%clk 0:00:05.8]} 53. fxe5 {[%clk 0:00:14.9]} 53... Kc6 {[%clk 0:00:06.7]} 54.
Kg3 {[%clk 0:00:13.8]} 54... b3 {[%clk 0:00:05.7]} 55. Rb1 {[%clk 0:00:09.3]}
55... Rb8 {[%clk 0:00:06.1]} 56. Bf6 {[%clk 0:00:09.2]} 56... Kxc5 {[%clk
0:00:05.1]} 57. Bxg7 {[%clk 0:00:08.7]} 57... Kc4 {[%clk 0:00:05]} 58. h6 {[%clk
0:00:07.3]} 58... b2 {[%clk 0:00:05]} 59. h7 {[%clk 0:00:07.2]} 59... Kc3 {[%clk
0:00:03.5]} 60. h8=Q {[%clk 0:00:05.8]} 60... Rxh8 {[%clk 0:00:03.9]} 61. Bxh8
{[%clk 0:00:05.4]} 61... Kc2 {[%clk 0:00:04.8]} 62. Rxb2+ {[%clk 0:00:05.7]}
62... Kxb2 {[%clk 0:00:05.7]} 63. g7 {[%clk 0:00:06.2]} 63... d4 {[%clk
0:00:06.6]} 64. g8=Q {[%clk 0:00:06.4]} 64... d3 {[%clk 0:00:07.5]} 1-0